bitfinex/quotes_BTCUSD_20220204
["timestamp","ask_amount","ask_price","bid_price","bid_amount"]
[1643958303759,0.25922151,38148.0,38145.0,0.00096949]
[1643958304213,0.0482,38150.0,38147.0,0.34590449]
[1643958304418,0.0482,38150.0,38145.0,0.00096949]
[1643958304612,0.0482,38150.0,38147.0,0.1491296]
[1643958304815,0.25922151,38149.0,38147.0,0.1491296]
[1643958305012,0.30922151,38149.0,38147.0,0.1491296]
[1643958305212,0.09903051,38149.0,38147.0,0.1491296]
[1643958305512,0.210191,38148.0,38145.0,0.00096949]
[1643958305815,0.260191,38148.0,38146.0,0.00100813]
[1643958306011,0.30922151,38148.0,38146.0,0.00100813]
[1643958306511,0.30922151,38148.0,38147.0,0.00096949]
[1643958306711,0.09903051,38148.0,38147.0,0.00096949]
[1643958306913,0.05,38150.0,38147.0,0.00096949]
[1643958307112,0.04903051,38149.0,38147.0,0.00096949]
[1643958307313,0.04903051,38149.0,38146.0,0.00098497]
[1643958307743,0.08571552,38151.0,38146.0,0.00098497]
[1643958307943,0.04903051,38147.0,38145.0,0.00096949]
[1643958308242,0.04903051,38147.0,38146.0,0.344935]
[1643958308844,0.13474604,38151.0,38146.0,0.344935]
[1643958309044,0.210191,38150.0,38147.0,0.00096949]
[1643958309445,0.210191,38150.0,38147.0,0.00195444]
[1643958309648,0.210191,38150.0,38138.0,0.00394075]
[1643958309649,0.05,38141.0,38123.0,0.27774107]
[1643958309849,0.05,38141.0,38121.0,0.34269424]
[1643958309850,0.44965754,38140.0,38121.0,0.01]
[1643958310047,0.12384893,38122.0,38121.0,0.01]
[1643958310248,0.01942854,38134.0,38113.0,1.44]
[1643958310249,0.08487037,38121.0,38113.0,1.44]
[1643958310451,0.13487037,38121.0,38111.0,0.01]
[1643958310648,0.05,38121.0,38119.0,0.344935]
[1643958310847,0.0982,38125.0,38119.0,0.344935]
[1643958311248,0.0482,38128.0,38124.0,0.05]
[1643958311498,0.0482,38128.0,38119.0,0.30145754]
[1643958311700,0.0482,38128.0,38125.0,0.16113798]
[1643958311897,0.210191,38127.0,38125.0,0.16113798]
[1643958312095,0.065599,38130.0,38125.0,0.16113798]
[1643958312295,0.0982,38133.0,38126.0,0.05]
[1643958312494,0.210191,38132.0,38125.0,0.16113798]
[1643958312695,0.0982,38133.0,38125.0,0.16113798]
[1643958312895,0.0482,38133.0,38125.0,0.21113798]
[1643958313109,0.0482,38133.0,38132.0,1.5]
[1643958313298,0.01942854,38134.0,38132.0,1.844935]
[1643958313500,0.01942854,38134.0,38133.0,0.66405961]
[1643958313895,0.01942854,38134.0,38133.0,1.09806625]
[1643958315156,0.37228565,38139.0,38133.0,0.344935]
[1643958315356,0.37228565,38139.0,38132.0,0.05]
[1643958315357,0.210191,38138.0,38134.0,0.05]
[1643958315758,0.50609554,38138.0,38134.0,0.05]
[1643958315957,0.210191,38138.0,38134.0,0.05]
[1643958316157,0.5021475,38138.0,38132.0,0.00101629]
[1643958316361,0.5021475,38138.0,38130.0,0.05]
[1643958316362,0.1023398,38135.0,38130.0,0.05]
[1643958316558,0.49770054,38134.0,38133.0,0.00101626]
[1643958316757,0.54770054,38134.0,38133.0,0.00101626]
[1643958316958,0.410191,38134.0,38133.0,0.00101626]
[1643958317257,0.310191,38134.0,38133.0,0.00101626]
[1643958317459,0.210191,38134.0,38133.0,0.05101626]
[1643958317657,0.210191,38134.0,38133.0,0.05]
[1643958317856,0.02,38138.0,38133.0,0.344935]
[1643958317857,0.31021356,38138.0,38133.0,0.344935]
[1643958318056,0.31021356,38138.0,38132.0,0.00096095]
[1643958318057,0.210191,38137.0,38132.0,0.00096095]
[1643958318258,0.310191,38137.0,38132.0,0.00096095]
[1643958318457,0.210191,38135.0,38132.0,0.00096095]
[1643958318657,0.260191,38135.0,38132.0,0.00096095]
[1643958318912,0.05,38135.0,38130.0,0.05]
[1643958319105,0.210191,38134.0,38132.0,0.00096095]
[1643958319704,0.38620185,38133.0,38132.0,0.00096095]
[1643958319906,0.59639285,38133.0,38132.0,0.00096095]
[1643958320103,0.35772958,38133.0,38128.0,0.1898268]
[1643958320303,0.210191,38132.0,38131.0,0.00096097]
[1643958320906,0.260191,38132.0,38131.0,0.00096097]
[1643958321107,0.260191,38132.0,38131.0,0.05096097]
[1643958321307,0.260191,38132.0,38126.0,0.27154498]
[1643958321308,0.05,38132.0,38126.0,0.05]
[1643958321513,0.05,38132.0,38130.0,0.00096471]
[1643958321806,0.01883942,38137.0,38130.0,0.00096471]
[1643958322005,0.01883942,38137.0,38135.0,0.16224987]
[1643958322207,0.210191,38136.0,38131.0,0.31107508]
[1643958322407,0.01883942,38137.0,38131.0,0.31107508]
[1643958322648,0.210191,38136.0,38134.0,0.00096464]
[1643958323248,0.18977773,38135.0,38134.0,0.00096464]
[1643958323449,0.210191,38135.0,38134.0,0.00096464]
[1643958323650,0.210191,38135.0,38129.0,0.1460264]
[1643958323651,0.210191,38135.0,38129.0,0.40408126]
[1643958323949,0.210191,38135.0,38127.0,0.34190885]
[1643958323950,0.05,38136.0,38133.0,0.00096466]
[1643958324158,1.260191,38134.0,38133.0,0.00096466]
[1643958324354,1.458391,38134.0,38127.0,0.00385925]
[1643958324552,0.210191,38132.0,38127.0,0.00385925]
[1643958324750,0.210191,38132.0,38118.0,0.19266084]
[1643958324751,0.0482,38131.0,38118.0,0.19266084]
[1643958324951,0.0797693,38124.0,38121.0,0.1555119]
[1643958325150,0.0797693,38124.0,38117.0,0.05]
[1643958325351,0.1297693,38124.0,38116.0,0.23459935]
[1643958325651,0.1797693,38124.0,38117.0,0.05]
[1643958326153,0.05,38124.0,38119.0,0.00058156]
[1643958326701,0.210191,38121.0,38119.0,0.00058156]
[1643958326894,0.260191,38121.0,38119.0,0.00058156]
[1643958327294,0.210191,38120.0,38115.0,0.2883209]
[1643958327495,0.05,38121.0,38118.0,0.00058157]
[1643958327795,0.16671977,38124.0,38118.0,0.00058157]
[1643958328194,0.20239384,38123.0,38118.0,0.00058157]
[1643958328398,0.20239384,38123.0,38096.0,0.05]
[1643958328399,0.15,38115.0,38096.0,0.05]
[1643958328598,0.8,38102.0,38096.0,0.05]
[1643958328797,0.15,38102.0,38096.0,0.05]
[1643958328996,0.2,38102.0,38096.0,0.05]
[1643958329201,0.2482,38102.0,38096.0,0.05]
[1643958329395,0.45766347,38102.0,38096.0,0.05]
[1643958329596,0.2982,38102.0,38096.0,0.05]
[1643958329799,0.1482,38102.0,38096.0,0.05]
[1643958329995,0.1982,38102.0,38096.0,0.05]
[1643958330649,0.1982,38102.0,38101.0,0.15313851]
[1643958330947,0.1982,38102.0,38101.0,0.01]
[1643958331248,0.1482,38102.0,38101.0,0.01]
[1643958332449,0.1982,38102.0,38101.0,0.01]
[1643958332649,0.1982,38102.0,38101.0,0.28524001]
[1643958332650,0.0482,38102.0,38101.0,0.28524001]
[1643958332852,0.02027754,38106.0,38103.0,0.345524]
[1643958333051,0.02027754,38106.0,38104.0,0.28779882]
[1643958333251,0.02027754,38106.0,38104.0,0.14187141]
[1643958333650,7.754e-05,38106.0,38105.0,0.63710444]
[1643958333902,7.754e-05,38106.0,38105.0,0.65730444]
[1643958334299,0.05,38109.0,38106.0,1.45]
[1643958334605,2.59116554,38122.0,38113.0,0.37186026]
[1643958334800,0.00101336,38114.0,38113.0,1.02663594]
[1643958335000,0.00101336,38114.0,38113.0,0.71738426]
[1643958335298,0.00101336,38114.0,38113.0,0.37186026]
[1643958335499,0.00101336,38114.0,38113.0,0.55553035]
[1643958335700,0.0001,38128.0,38113.0,1.18429608]
[1643958335900,0.002,38129.0,38127.0,0.0499]
[1643958336198,0.002,38129.0,38125.0,0.0499]
[1643958336399,0.002,38129.0,38124.0,0.0499]
[1643958336599,0.0001,38126.0,38122.0,0.35484592]
[1643958336798,0.0001,38123.0,38118.0,0.0499]
[1643958336998,0.002,38129.0,38118.0,0.0499]
[1643958336999,0.0001,38120.0,38118.0,0.345524]
[1643958337645,0.0001,38122.0,38118.0,0.0499]
[1643958337844,0.14716155,38126.0,38115.0,0.0499]
[1643958337845,0.0001,38119.0,38115.0,0.0499]
[1643958338245,0.0001,38116.0,38111.0,0.395424]
[1643958338643,0.17231036,38121.0,38111.0,0.395424]
[1643958338644,0.29859761,38121.0,38111.0,0.0499]
[1643958338846,0.0001,38113.0,38111.0,0.0499]
[1643958339145,0.59209365,38121.0,38111.0,0.395524]
[1643958339146,0.34859761,38121.0,38111.0,0.395524]
[1643958339347,0.44859761,38121.0,38108.0,0.24066417]
[1643958339545,0.000962,38114.0,38110.0,0.0009621]
[1643958339945,0.000962,38114.0,38113.0,0.7]
[1643958340148,0.000962,38114.0,38111.0,0.2811143]
[1643958340345,0.000962,38114.0,38112.0,0.345524]
[1643958340548,0.05,38121.0,38107.0,0.01876589]
[1643958340549,0.0482,38113.0,38107.0,0.01876589]
[1643958340747,0.0482,38113.0,38110.0,0.0009621]
[1643958341047,0.07441479,38112.0,38110.0,0.0009621]
[1643958341245,0.000962,38114.0,38110.0,0.0009621]
[1643958341246,0.09173755,38114.0,38110.0,0.0009621]
[1643958341504,0.18036771,38112.0,38110.0,0.0009621]
[1643958341702,0.0482,38111.0,38102.0,0.01890946]
[1643958342107,0.079194,38095.0,38093.0,0.001]
[1643958342310,0.079194,38095.0,38092.0,0.001]
[1643958342311,0.0492,38094.0,38092.0,0.001]
[1643958342504,0.0492,38094.0,38091.0,0.01]
[1643958342505,0.065676,38093.0,38091.0,0.01]
[1643958342704,0.0482,38092.0,38091.0,0.01]
[1643958343005,0.0492,38092.0,38091.0,0.01]
[1643958344005,0.05,38092.0,38091.0,0.059]
[1643958344204,0.19706,38095.0,38091.0,0.404524]
[1643958344205,0.19606,38095.0,38091.0,0.404524]
[1643958344407,0.19606,38095.0,38093.0,0.345524]
[1643958344706,0.19606,38095.0,38093.0,0.346524]
[1643958344707,0.05,38095.0,38093.0,0.346524]
[1643958344910,0.001,38098.0,38094.0,0.16370246]
[1643958345170,0.31386177,38101.0,38094.0,0.16370246]
[1643958345370,0.001,38100.0,38096.0,0.049]
[1643958345567,0.0482,38099.0,38096.0,0.049]
[1643958345767,0.0482,38099.0,38094.0,0.164666]
[1643958346167,0.001,38095.0,38094.0,0.00096354]
[1643958346567,0.001,38095.0,38091.0,0.011]
[1643958346766,0.48421652,38098.0,38091.0,0.011]
[1643958346767,0.58421652,38098.0,38093.0,0.00096282]
[1643958346966,0.001,38094.0,38093.0,0.00096282]
[1643958347167,0.001,38094.0,38093.0,0.19695181]
[1643958347369,0.001,38096.0,38093.0,0.19695181]
[1643958347571,0.001,38096.0,38093.0,0.19795181]
[1643958347769,0.001,38096.0,38093.0,0.19598899]
[1643958347968,0.001,38096.0,38093.0,0.19795181]
[1643958348169,0.001,38096.0,38093.0,0.19695181]
[1643958348369,0.001,38096.0,38093.0,0.19795181]
[1643958348671,0.601,38094.0,38093.0,0.00096282]
[1643958348902,0.2492,38094.0,38091.0,0.01]
[1643958349094,0.2492,38094.0,38093.0,0.00096282]
[1643958349095,0.2482,38094.0,38093.0,0.00096282]
[1643958349295,0.2492,38094.0,38093.0,0.00096282]
[1643958350100,0.24298696,38094.0,38091.0,0.01]
[1643958350299,0.14198696,38094.0,38092.0,0.00096288]
[1643958350500,0.001,38093.0,38092.0,0.00096288]
[1643958351296,0.001,38093.0,38091.0,0.01]
[1643958351497,0.001,38093.0,38091.0,0.01096289]
[1643958352095,0.001,38093.0,38090.0,0.03562224]
[1643958352297,0.55,38091.0,38090.0,0.00021975]
[1643958352497,0.01937776,38091.0,38090.0,0.00021975]
[1643958352749,0.01937776,38091.0,38080.0,0.03062224]
[1643958352750,0.11437776,38091.0,38085.0,0.35156692]
[1643958352946,0.01437776,38088.0,38085.0,0.35178667]
[1643958353245,0.065672,38095.0,38092.0,0.1805307]
[1643958353246,0.08004976,38095.0,38092.0,0.1805307]
[1643958353446,0.01437776,38093.0,38089.0,0.03562224]
[1643958353646,0.01437776,38091.0,38089.0,0.03562224]
[1643958353946,0.01437776,38091.0,38082.0,0.00021975]
[1643958354147,0.01437776,38091.0,38081.0,0.08191361]
[1643958354345,0.01437776,38088.0,38081.0,0.03191361]
[1643958354546,0.01437776,38088.0,38084.0,0.16376507]
[1643958354745,0.01437776,38088.0,38087.0,0.48562224]
[1643958354946,0.01347231,38088.0,38087.0,0.03652769]
[1643958355148,0.01347231,38088.0,38084.0,0.00096227]
[1643958355149,0.06167231,38088.0,38084.0,0.00096227]
[1643958355358,1.05755863,38085.0,38084.0,0.00118202]
[1643958355546,1.05755863,38085.0,38078.0,0.02326489]
[1643958355547,0.98495078,38083.0,38078.0,0.02326489]
[1643958355748,0.00755863,38079.0,38078.0,0.02326489]
[1643958355946,0.05575863,38079.0,38078.0,0.02326489]
[1643958356146,0.05575863,38079.0,38078.0,0.01941524]
[1643958356601,0.12145863,38079.0,38078.0,0.01941524]
[1643958356802,0.14600628,38086.0,38081.0,0.27758143]
[1643958357000,0.00755863,38083.0,38076.0,0.04244137]
[1643958357203,0.0482,38082.0,38076.0,0.04244137]
[1643958357401,0.00755863,38078.0,38076.0,0.04244137]
[1643958357602,0.00755863,38081.0,38076.0,0.04244137]
[1643958357801,0.05575863,38081.0,38076.0,0.04244137]
[1643958358005,0.05575863,38081.0,38080.0,0.04244137]
[1643958358204,0.0482,38081.0,38080.0,0.04244137]
[1643958358403,0.14600628,38086.0,38080.0,0.04244137]
[1643958358610,0.14600628,38086.0,38085.0,0.20184917]
[1643958358803,0.15356491,38086.0,38082.0,0.04244137]
[1643958359603,0.00755863,38083.0,38075.0,0.56073403]
[1643958359803,0.00755863,38083.0,38066.0,0.27774107]
[1643958359804,0.14600628,38086.0,38063.0,0.33269424]
[1643958360009,0.14600628,38086.0,38064.0,0.22347871]
[1643958360010,0.05,38078.0,38064.0,0.22347871]
[1643958360250,0.29380439,38077.0,38065.0,0.345524]
[1643958360446,0.2894996,38070.0,38066.0,0.345524]
[1643958360656,0.05,38067.0,38059.0,0.22347871]
[1643958360849,0.37414084,38070.0,38060.0,0.78817]
[1643958360850,0.02027582,38070.0,38060.0,0.78817]
[1643958361049,0.02027582,38070.0,38069.0,0.27572672]
[1643958361448,0.04027582,38070.0,38069.0,0.345524]
[1643958361647,0.04027582,38070.0,38062.0,0.345524]
[1643958361847,0.04027582,38070.0,38069.0,0.17260757]
[1643958362247,0.25,38078.0,38069.0,0.17260757]
[1643958362248,0.55382223,38078.0,38069.0,0.17260757]
[1643958362448,0.05,38075.0,38069.0,0.17260757]
[1643958362648,0.05,38075.0,38069.0,0.19288339]
[1643958362848,0.4014656,38077.0,38069.0,0.19288339]
[1643958363049,0.0482,38077.0,38069.0,0.19288339]
[1643958363353,0.34020143,38084.0,38069.0,0.19288339]
[1643958363549,0.35662855,38085.0,38071.0,0.00096045]
[1643958363748,0.35662855,38085.0,38072.0,0.27345618]
[1643958364005,0.35662855,38085.0,38080.0,0.15602967]
[1643958364006,0.30437942,38082.0,38080.0,0.15602967]
[1643958364506,0.05,38081.0,38080.0,0.15602967]
[1643958364804,0.40437942,38082.0,38079.0,0.00096033]
[1643958365004,0.30437942,38082.0,38079.0,0.00096033]
[1643958365204,0.05,38080.0,38079.0,0.00096033]
[1643958365506,0.45437942,38082.0,38079.0,0.00096033]
[1643958365705,0.50437942,38082.0,38071.0,0.0012272]
[1643958365909,0.30418855,38081.0,38079.0,0.00096034]
[1643958366106,1.24601317,38080.0,38079.0,0.00096034]
[1643958366307,0.29601317,38080.0,38079.0,0.00096034]
[1643958366507,0.1,38080.0,38079.0,0.00096034]
[1643958366905,0.1,38080.0,38071.0,0.0012272]
[1643958366906,0.80217736,38080.0,38071.0,0.0012272]
[1643958367104,0.05,38073.0,38071.0,0.0012272]
[1643958367306,0.85217736,38080.0,38072.0,0.00384752]
[1643958367505,0.05,38078.0,38072.0,0.00384752]
[1643958367746,0.05,38073.0,38072.0,0.00384752]
[1643958367945,0.29797709,38073.0,38072.0,0.00384752]
[1643958368145,0.29797709,38073.0,38071.0,0.16146224]
[1643958368345,0.1,38077.0,38071.0,0.13742408]
[1643958368548,0.15,38077.0,38071.0,0.13742408]
[1643958368746,0.15,38077.0,38065.0,0.00384794]
[1643958368952,1.8657712,38076.0,38067.0,0.02104701]
[1643958369149,0.05,38068.0,38067.0,0.02104701]
[1643958369348,0.02022948,38068.0,38067.0,0.02104701]
[1643958369946,0.02022948,38068.0,38067.0,0.18286283]
[1643958370148,0.02022948,38068.0,38067.0,0.52838683]
[1643958370647,0.07022948,38068.0,38067.0,0.52838683]
[1643958370848,0.12022948,38068.0,38067.0,0.18286283]
[1643958371051,0.02022948,38068.0,38067.0,0.18286283]
[1643958371252,0.05,38077.0,38071.0,0.30789738]
[1643958371500,0.05,38077.0,38072.0,0.26433632]
[1643958371698,0.05,38077.0,38071.0,0.30789738]
[1643958371900,0.04940283,38077.0,38071.0,0.30789738]
[1643958372102,0.3441028,38078.0,38077.0,0.0005982]
[1643958372500,0.39350563,38078.0,38077.0,0.0005982]
[1643958373304,0.44350563,38078.0,38077.0,0.0005982]
[1643958373506,0.44350563,38078.0,38072.0,0.0217145]
[1643958373507,0.05,38074.0,38072.0,0.0217145]
[1643958373707,0.17187354,38073.0,38072.0,0.0217145]
[1643958373903,0.22187354,38073.0,38072.0,0.0217145]
[1643958374306,0.22187354,38073.0,38054.0,0.09038086]
[1643958374307,0.14583644,38069.0,38054.0,0.09038086]
[1643958374504,0.14583644,38069.0,38054.0,0.25503348]
[1643958374505,0.04940283,38059.0,38054.0,0.25503348]
[1643958374704,0.04940283,38059.0,38055.0,0.345524]
[1643958375151,0.04940283,38059.0,38055.0,0.27575939]
[1643958375355,0.04940283,38057.0,38055.0,0.27575939]
[1643958375550,0.04940283,38057.0,38056.0,0.15236116]
[1643958375750,0.12247071,38060.0,38056.0,0.15236116]
[1643958375751,0.09940283,38060.0,38056.0,0.15236116]
[1643958375951,0.26438959,38058.0,38056.0,0.15236116]
[1643958376151,0.04940283,38057.0,38056.0,0.15236116]
[1643958376355,0.04940283,38057.0,38055.0,0.00101347]
[1643958376356,0.34633399,38057.0,38055.0,0.00101347]
[1643958376551,0.30603107,38056.0,38049.0,0.05]
[1643958376751,0.04940283,38052.0,38047.0,0.33744887]
[1643958376952,0.04940283,38052.0,38047.0,0.33650343]
[1643958377151,0.35603107,38056.0,38048.0,0.345524]
[1643958377351,0.04940283,38049.0,38045.0,0.24488324]
[1643958377552,0.25781928,38056.0,38048.0,0.00059717]
[1643958377553,0.04940283,38051.0,38048.0,0.00059717]
[1643958377752,0.12247071,38054.0,38048.0,0.00059717]
[1643958377952,0.04940283,38053.0,38048.0,0.00059717]
[1643958378151,0.24057441,38052.0,38048.0,0.00059717]
[1643958378351,0.24057441,38052.0,38049.0,0.15124469]
[1643958378552,0.24057441,38052.0,38051.0,0.00059717]
[1643958378751,0.24057441,38052.0,38049.0,0.15184186]
[1643958379200,0.24057441,38052.0,38049.0,0.00059717]
[1643958379599,0.28997724,38052.0,38049.0,0.00059717]
[1643958380401,0.00101043,38052.0,38051.0,0.00059717]
[1643958381401,0.40702664,38059.0,38051.0,0.05]
[1643958381402,0.29906002,38055.0,38051.0,0.05]
[1643958381604,0.00101042,38053.0,38051.0,0.19959527]
[1643958381800,0.00101042,38053.0,38051.0,0.05]
[1643958382402,0.30434435,38055.0,38048.0,0.05]
[1643958382646,0.30434435,38055.0,38051.0,0.32042586]
[1643958382847,0.077567,38059.0,38053.0,0.05]
[1643958383049,0.13146,38060.0,38055.0,0.19105544]
[1643958383250,0.05,38059.0,38054.0,0.05]
[1643958383450,0.115729,38059.0,38054.0,0.05]
[1643958383646,0.065727,38058.0,38054.0,0.05]
[1643958383848,0.32516645,38058.0,38054.0,0.05]
[1643958384049,0.32560771,38058.0,38054.0,0.05]
[1643958384252,0.37560771,38058.0,38054.0,0.05]
[1643958384650,0.05,38057.0,38054.0,0.05]
[1643958384849,0.1,38057.0,38054.0,0.05]
[1643958385049,0.1,38057.0,38047.0,0.05]
[1643958385050,0.065739,38056.0,38047.0,0.05]
[1643958385252,0.131482,38054.0,38051.0,0.00101205]
[1643958385453,0.34353544,38054.0,38051.0,0.00101205]
[1643958385652,0.181482,38054.0,38051.0,0.00101205]
[1643958385951,0.231482,38054.0,38051.0,0.00101205]
[1643958386406,0.231482,38054.0,38051.0,0.00101202]
[1643958386407,0.06574,38052.0,38051.0,0.00101202]
[1643958387493,0.06574,38052.0,38048.0,0.00021957]
[1643958387695,0.06574,38052.0,38050.0,0.00101203]
[1643958388094,0.8037775,38051.0,38050.0,0.00101203]
[1643958388296,0.66083348,38051.0,38050.0,0.00101203]
[1643958388695,0.4037775,38051.0,38044.0,0.00021957]
[1643958388911,0.915748,38050.0,38049.0,0.00101205]
[1643958389095,0.065748,38050.0,38049.0,0.00101205]
[1643958389299,0.165748,38050.0,38049.0,0.00101205]
[1643958389894,0.165748,38050.0,38044.0,0.05021957]
[1643958390145,0.165748,38050.0,38048.0,0.00057227]
[1643958390347,0.18544166,38049.0,38048.0,0.00057227]
[1643958390549,0.05,38049.0,38048.0,0.00057227]
[1643958390745,0.065748,38050.0,38048.0,0.00057227]
[1643958390946,0.115748,38050.0,38048.0,0.00057227]
[1643958391146,0.065748,38050.0,38047.0,0.05]
[1643958391346,0.065748,38050.0,38049.0,0.05]
[1643958391548,0.065748,38050.0,38048.0,0.00021957]
[1643958391747,0.115748,38050.0,38048.0,0.05021957]
[1643958391951,0.115748,38050.0,38048.0,0.05]
[1643958392147,0.115748,38050.0,38047.0,0.00057228]
[1643958392348,0.065748,38050.0,38046.0,0.00021957]
[1643958392549,0.08898762,38048.0,38047.0,0.00101159]
[1643958392748,0.32439291,38048.0,38047.0,0.00101159]
[1643958392948,0.23540529,38048.0,38047.0,0.00101159]
[1643958393148,0.23540529,38048.0,38047.0,0.05101159]
[1643958393349,0.065748,38050.0,38047.0,0.00101159]
[1643958393548,0.065748,38050.0,38044.0,0.00021957]
[1643958393549,0.165748,38050.0,38044.0,0.00021957]
[1643958393749,0.165748,38050.0,38046.0,0.00101161]
[1643958393750,0.05,38049.0,38046.0,0.00101161]
[1643958394603,0.30303067,38050.0,38043.0,0.00021957]
[1643958394604,0.05,38047.0,38043.0,0.00021957]
[1643958394801,0.23528364,38044.0,38041.0,0.06021957]
[1643958395201,0.3095862,38044.0,38041.0,0.06021957]
[1643958395403,0.07471072,38042.0,38041.0,0.06021957]
[1643958395703,0.05,38042.0,38041.0,0.01]
[1643958395902,0.05,38044.0,38041.0,0.06]
[1643958396302,0.113949,38050.0,38049.0,0.03245386]
[1643958396901,0.36312604,38050.0,38049.0,0.03245386]
[1643958397303,0.46312604,38050.0,38049.0,0.03245386]
[1643958397646,0.213949,38050.0,38049.0,0.03245386]
[1643958397948,0.54743296,38050.0,38049.0,0.03245386]
[1643958398148,0.59525619,38050.0,38049.0,0.03245386]
[1643958398548,0.83711374,38050.0,38049.0,0.03245386]
[1643958398952,0.50580655,38050.0,38049.0,0.03245386]
[1643958399351,0.77694666,38050.0,38049.0,0.03245386]
[1643958400051,0.82514666,38050.0,38049.0,0.03245386]
[1643958400253,0.50850655,38050.0,38049.0,0.03245386]
[1643958400752,0.55850655,38050.0,38049.0,0.03245386]
[1643958401253,0.32713913,38050.0,38049.0,0.03245386]
[1643958402301,0.65663692,38050.0,38049.0,0.03245386]
[1643958402498,0.72238592,38050.0,38049.0,0.03245386]
[1643958402701,0.77058592,38050.0,38049.0,0.03245386]
[1643958402901,0.44108813,38050.0,38049.0,0.03245386]
[1643958403099,0.93860609,38050.0,38049.0,0.03245386]
[1643958403300,1.08860609,38050.0,38049.0,0.03245386]
[1643958403502,0.89409738,38050.0,38049.0,0.03245386]
[1643958404502,1.06541408,38050.0,38049.0,0.03245386]
[1643958405349,0.79409738,38050.0,38049.0,0.03245386]
[1643958405550,0.113949,38050.0,38049.0,0.03245386]
[1643958405751,0.065749,38050.0,38049.0,0.03245386]
[1643958406953,0.115749,38050.0,38049.0,0.03245386]
[1643958407354,0.065749,38050.0,38049.0,0.03245386]
[1643958407558,0.115749,38050.0,38049.0,0.03245386]
[1643958407754,0.165749,38050.0,38049.0,0.02745386]
[1643958407953,0.160749,38050.0,38049.0,0.02745386]
[1643958408355,0.110749,38050.0,38049.0,0.02745386]
[1643958408554,0.21933564,38051.0,38049.0,0.07745386]
[1643958408555,0.02208664,38051.0,38049.0,0.07745386]
[1643958409006,0.02208664,38051.0,38049.0,0.42297786]
[1643958409208,0.00101092,38055.0,38050.0,0.28732388]
[1643958409406,0.00101092,38055.0,38053.0,0.34718452]
[1643958409706,0.00101092,38055.0,38054.0,0.05]
[1643958410007,0.00101092,38055.0,38054.0,0.24782703]
[1643958410210,0.065728,38056.0,38054.0,0.24782703]
[1643958410405,0.06673893,38056.0,38055.0,0.05]
[1643958411409,0.065728,38056.0,38054.0,0.00021957]
[1643958411608,0.065728,38056.0,38052.0,0.05021957]
[1643958412008,0.00101091,38057.0,38053.0,0.243993]
[1643958412208,0.00101091,38057.0,38053.0,0.00021957]
[1643958412408,0.00101091,38057.0,38054.0,0.15511016]
[1643958412649,0.131459,38059.0,38052.0,0.00021957]
[1643958412854,0.00101091,38057.0,38052.0,0.05]
[1643958413150,0.00101091,38057.0,38056.0,0.28039793]
[1643958413750,0.00101091,38057.0,38056.0,0.46717875]
[1643958413951,0.065728,38060.0,38056.0,0.46717875]
[1643958414150,0.0010109,38058.0,38056.0,0.46717875]
[1643958414749,0.0010109,38058.0,38056.0,0.51717875]
[1643958415152,0.065728,38060.0,38056.0,0.46717875]
[1643958415356,0.00101089,38059.0,38056.0,0.46717875]
[1643958415755,0.00101089,38059.0,38058.0,1.845524]
[1643958416153,0.00101089,38059.0,38058.0,2.21653111]
[1643958416417,0.31023968,38074.0,38060.0,0.345524]
[1643958416418,0.17880768,38074.0,38060.0,0.345524]
[1643958416608,0.17880768,38074.0,38069.0,0.31761416]
[1643958417207,0.17880768,38074.0,38069.0,0.345524]
[1643958417410,0.17880768,38074.0,38063.0,0.05]
[1643958417411,0.01828522,38071.0,38063.0,0.05]
[1643958417910,0.01828522,38071.0,38059.0,0.2734225]
[1643958418111,0.065707,38069.0,38061.0,0.05]
[1643958418406,0.065707,38069.0,38057.0,0.57]
[1643958418407,0.065707,38069.0,38064.0,0.05]
[1643958418613,0.35303088,38069.0,38057.0,0.05]
[1643958418809,0.35303088,38069.0,38054.0,0.05]
[1643958418810,0.40303088,38069.0,38054.0,0.05]
[1643958419010,0.07773775,38063.0,38054.0,0.05]
[1643958419209,0.065727,38062.0,38054.0,0.05]
[1643958419408,0.24126627,38061.0,38054.0,0.05]
[1643958419609,0.24126627,38061.0,38057.0,0.15189924]
[1643958420154,0.05,38060.0,38053.0,0.72546013]
[1643958420354,0.35283852,38060.0,38053.0,0.02162964]
[1643958420754,0.0482,38059.0,38053.0,0.02162964]
[1643958420957,0.32539821,38058.0,38053.0,0.02162964]
[1643958421155,0.0482,38057.0,38051.0,0.1687359]
[1643958421358,0.22500361,38054.0,38051.0,0.00101158]
[1643958422156,0.33202826,38053.0,38051.0,0.00101158]
[1643958422356,0.33202826,38053.0,38049.0,0.02767343]
[1643958422357,0.131479,38052.0,38049.0,0.02767343]
[1643958422558,0.44030171,38051.0,38049.0,0.02666179]
[1643958422757,0.31505626,38050.0,38049.0,0.02644222]
[1643958423758,0.46505626,38050.0,38049.0,0.02644222]
[1643958424005,0.46505626,38050.0,38049.0,0.02144222]
[1643958424205,0.36505626,38050.0,38049.0,0.02144222]
[1643958424804,0.46505626,38050.0,38049.0,0.02144222]
[1643958425807,0.46505626,38050.0,38049.0,0.01944222]
[1643958426807,0.15,38050.0,38049.0,0.01944222]
[1643958427208,1.4604679,38050.0,38049.0,0.01944222]
[1643958427406,0.51027328,38050.0,38049.0,0.01944222]
[1643958428263,0.4104679,38050.0,38049.0,0.01944222]
[1643958428655,0.4054679,38050.0,38049.0,0.01944222]
[1643958429454,0.48270024,38050.0,38049.0,0.01944222]
[1643958429656,0.07880585,38044.0,38043.0,0.00021957]
[1643958429955,0.065757,38043.0,38042.0,0.00426655]
[1643958430155,0.43646511,38043.0,38042.0,0.00404698]
[1643958430754,0.86903378,38043.0,38041.0,0.01021957]
[1643958430955,0.38618894,38042.0,38041.0,0.01101169]
[1643958431161,0.43438894,38042.0,38041.0,0.01101169]
[1643958431426,0.38025246,38043.0,38041.0,0.01101169]
[1643958431612,1.1,38040.0,38035.0,0.00404737]
[1643958431814,0.1045965,38036.0,38031.0,0.06]
[1643958432013,0.34109373,38035.0,38031.0,0.01]
[1643958432213,0.36399813,38035.0,38031.0,0.01]
[1643958432413,0.46399813,38035.0,38031.0,0.01]
[1643958432812,0.46399813,38035.0,38025.0,0.51175748]
[1643958432813,0.8,38033.0,38025.0,0.51175748]